lending/lending_fUSD_20250917
["ID","MTS","AMOUNT","RATE_DAILY","PERIOD"]
[385913605,1758131497053,-405.08430494,0.00025409,2]
[385913606,1758131497064,-400.0,0.00025409,2]
[385913607,1758131497074,-400.0,0.00025409,2]
[385913608,1758131497083,-400.0,0.00025409,2]
[385913609,1758131497093,-400.0,0.00025409,2]
[385913610,1758131497104,-400.0,0.00025409,2]
[385913611,1758131497114,-406.46022268,0.00025409,2]
[385913612,1758131497123,-729.55,0.00025409,2]
[385913613,1758131497133,-400.0,0.00025409,2]
[385913614,1758131497142,-400.0,0.00025409,2]
[385913615,1758131497152,-400.0,0.00025409,2]
[385913616,1758131497162,-400.0,0.00025409,2]
[385913617,1758131497171,-615.12,0.00025409,2]
[385913618,1758131497181,-400.0,0.00025409,2]
[385913619,1758131497190,-400.0,0.00025409,2]
[385913620,1758131497200,-400.0,0.00025409,2]
[385913621,1758131497209,-400.0,0.00025409,2]
[385913622,1758131497219,-325.86102909,0.00025409,2]
[385913623,1758131497228,-400.0,0.00025409,2]
[385913624,1758131497238,-400.0,0.00025409,2]
[385913625,1758131497247,-400.0,0.00025409,2]
[385913626,1758131497257,-400.0,0.00025409,2]
[385913627,1758131497267,-1328.41,0.00025409,2]
[385913628,1758131497277,-400.0,0.00025409,2]
[385913629,1758131497286,-400.0,0.00025409,2]
[385913630,1758131497295,-400.0,0.00025409,2]
[385913631,1758131497306,-400.0,0.00025409,2]
[385913632,1758131497315,-400.0,0.00025409,2]
[385913633,1758131497324,-400.0,0.00025409,2]
[385913634,1758131497334,-400.0,0.00025409,2]
[385913635,1758131497343,-836.47,0.00025409,2]
[385913636,1758131497353,-400.0,0.00025409,2]
[385913637,1758131497363,-400.0,0.00025409,2]
[385913638,1758131497373,-400.0,0.00025409,2]
[385913639,1758131497383,-400.0,0.00025409,2]
[385913640,1758131497393,-400.0,0.00025409,2]
[385913641,1758131497403,-695.12,0.00025409,2]
[385913642,1758131497414,-556.99,0.00025409,2]
[385913643,1758131497423,-400.0,0.00025409,2]
[385913644,1758131497433,-400.0,0.00025409,2]
[385913645,1758131497443,-400.0,0.00025409,2]
[385913646,1758131497453,-400.0,0.00025409,2]
[385913647,1758131497462,-400.0,0.00025409,2]
[385913648,1758131497472,-587.98,0.00025409,2]
[385913649,1758131497481,-671.85,0.00025409,2]
[385913650,1758131497490,-844.12,0.00025409,2]
[385913651,1758131497500,-608.32,0.00025409,2]
[385913652,1758131497509,-400.0,0.00025409,2]
[385913653,1758131497519,-906.32,0.00025409,2]
[385913654,1758131497528,-400.0,0.00025409,2]
[385913655,1758131497537,-406.21363342,0.00025409,2]
[385913656,1758131497547,-489.07,0.00025409,2]
[385913657,1758131497557,-400.0,0.00025409,2]
[385913658,1758131497567,-400.0,0.00025409,2]
[385913659,1758131497577,-400.0,0.00025409,2]
[385913660,1758131497596,-400.0,0.00025409,2]
[385913661,1758131497612,-400.0,0.00025409,2]
[385913662,1758131497630,-400.0,0.00025409,2]
[385913663,1758131497649,-2034.54,0.00025409,2]
[385913664,1758131497663,-400.0,0.00025409,2]
[385913665,1758131497682,-400.0,0.00025409,2]
[385913666,1758131497701,-436.53,0.00025409,2]
[385913667,1758131497719,-400.0,0.00025409,2]
[385913668,1758131497738,-400.0,0.00025409,2]
[385913669,1758131497757,-211.18594913,0.00025409,2]
[385913670,1758131497773,-400.0,0.00025409,2]
[385913671,1758131497786,-600.71,0.00025409,2]
[385913672,1758131497805,-929.04,0.00025409,2]
[385913673,1758131497818,-400.0,0.00025409,2]
[385913674,1758131497837,-400.0,0.00025409,2]
[385913675,1758131497852,-400.0,0.00025409,2]
[385913676,1758131497867,-400.0,0.00025409,2]
[385913677,1758131497882,-400.0,0.00025409,2]
[385913678,1758131497898,-789.08,0.00025409,2]
[385913679,1758131497913,-400.0,0.00025409,2]
[385913680,1758131497930,-337.67366562,0.00025409,2]
[385913681,1758131497945,-400.0,0.00025409,2]
[385913682,1758131497959,-400.0,0.00025409,2]
[385913683,1758131497974,-586.41,0.00025409,2]
[385913684,1758131497993,-973.91,0.00025409,2]
[385913685,1758131498007,-400.0,0.00025409,2]
[385913686,1758131498022,-400.0,0.00025409,2]
[385913687,1758131498036,-400.0,0.00025409,2]
[385913688,1758131498051,-488.2,0.00025409,2]
[385913689,1758131498065,-400.0,0.00025409,2]
[385913690,1758131498079,-400.0,0.00025409,2]
[385913691,1758131498094,-811.5,0.00025409,2]
[385913692,1758131498108,-561.36,0.00025409,2]
[385913693,1758131498123,-419.31897155,0.00025409,2]
[385913694,1758131498137,-400.0,0.00025409,2]
[385913695,1758131498152,-400.0,0.00025409,2]
[385913696,1758131498167,-400.0,0.00025409,2]
[385913697,1758131498182,-400.0,0.00025409,2]
[385913698,1758131498197,-514.08,0.00025409,2]
[385913699,1758131498212,-400.0,0.00025409,2]
[385913700,1758131498226,-500.97,0.00025409,2]
[385913701,1758131498241,-440.9,0.00025409,2]
[385913702,1758131498255,-424.33,0.00025409,2]
[385913703,1758131498270,-605.89,0.00025409,2]
[385913704,1758131498285,-400.0,0.00025409,2]
[385913705,1758131498300,-155.84615086,0.00025409,2]
[385913706,1758131498316,-400.0,0.00025409,2]
[385913707,1758131498331,-552.42,0.00025409,2]
[385913708,1758131498346,-400.0,0.00025409,2]
[385913709,1758131498361,-400.0,0.00025409,2]
[385913710,1758131498376,-670.68,0.00025409,2]
[385913711,1758131498390,-400.0,0.00025409,2]
[385913712,1758131498405,-400.0,0.00025409,2]
[385913713,1758131498420,-400.0,0.00025409,2]
[385913714,1758131498435,-400.0,0.00025409,2]
[385913715,1758131498449,-543.04,0.00025409,2]
[385913716,1758131498464,-537.33,0.00025409,2]
[385913717,1758131498479,-443.28,0.00025409,2]
[385913718,1758131498493,-400.0,0.00025409,2]
[385913719,1758131498507,-407.15,0.00025409,2]
[385913720,1758131498522,-400.0,0.00025409,2]
[385913721,1758131498540,-400.0,0.00025409,2]
[385913722,1758131498557,-464.27,0.00025409,2]
[385913723,1758131498571,-956.81,0.00025409,2]
[385913724,1758131498586,-400.0,0.00025409,2]
[385913725,1758131498601,-400.0,0.00025409,2]
[385913726,1758131498617,-532.35,0.00025409,2]
[385913727,1758131498633,-400.0,0.00025409,2]
[385913728,1758131498648,-400.0,0.00025409,2]
[385913729,1758131498663,-400.0,0.00025409,2]
[385913730,1758131498678,-400.0,0.00025409,2]
[385913731,1758131498692,-400.0,0.00025409,2]
[385913732,1758131498708,-511.73,0.00025409,2]
[385913733,1758131498723,-400.0,0.00025409,2]
[385913734,1758131498739,-635.73,0.00025409,2]
[385913735,1758131498754,-400.0,0.00025409,2]
[385913736,1758131498775,-407.93,0.00025409,2]
[385913737,1758131498790,-400.0,0.00025409,2]
[385913738,1758131498804,-440.8,0.00025409,2]
[385913739,1758131498819,-400.0,0.00025409,2]
[385913740,1758131498835,-530.97,0.00025409,2]
[385913741,1758131498851,-435.88800569,0.00025409,2]
[385913742,1758131498865,-400.0,0.00025409,2]
[385913743,1758131498881,-459.41,0.00025409,2]
[385913744,1758131498897,-400.0,0.00025409,2]
[385913745,1758131498913,-400.0,0.00025409,2]
[385913746,1758131498928,-400.0,0.00025409,2]
[385913747,1758131498943,-400.0,0.00025409,2]
[385913748,1758131498959,-400.0,0.00025409,2]
[385913749,1758131498975,-400.0,0.00025409,2]
[385913750,1758131498995,-400.0,0.00025409,2]
[385913751,1758131499011,-536.31,0.00025409,2]
[385913752,1758131499029,-400.0,0.00025409,2]
[385913753,1758131499044,-400.0,0.00025409,2]
[385913754,1758131499060,-474.95,0.00025409,2]
[385913755,1758131499075,-539.34,0.00025409,2]
[385913756,1758131499090,-673.93,0.00025409,2]
[385913757,1758131499106,-400.0,0.00025409,2]
[385913758,1758131499120,-537.69,0.00025409,2]
[385913759,1758131499135,-400.0,0.00025409,2]
[385913760,1758131499151,-400.0,0.00025409,2]
[385913761,1758131499166,-400.0,0.00025409,2]
[385913762,1758131499181,-613.04,0.00025409,2]
[385913763,1758131499197,-400.0,0.00025409,2]
[385913764,1758131499212,-400.0,0.00025409,2]
[385913765,1758131499228,-400.0,0.00025409,2]
[385913766,1758131499243,-458.12,0.00025409,2]
[385913767,1758131499258,-612.89,0.00025409,2]
[385913768,1758131499274,-400.0,0.00025409,2]
[385913769,1758131499290,-506.5,0.00025409,2]
[385913770,1758131499306,-400.0,0.00025409,2]
[385913771,1758131499323,-400.0,0.00025409,2]
[385913772,1758131499340,-400.0,0.00025409,2]
[385913773,1758131499355,-400.0,0.00025409,2]
[385913774,1758131499371,-400.0,0.00025409,2]
[385913775,1758131499389,-444.54,0.00025409,2]
[385913776,1758131499406,-400.0,0.00025409,2]
[385913777,1758131499423,-400.0,0.00025409,2]
[385913778,1758131499690,-400.0,0.00025409,2]
[385913779,1758131499707,-400.0,0.00025409,2]
[385913780,1758131499718,-518.06,0.00025409,2]
[385913781,1758131499728,-400.0,0.00025409,2]
[385913782,1758131499737,-300.0,0.00025409,2]
[385913783,1758131499747,-400.0,0.00025409,2]
[385913784,1758131499757,-449.17,0.00025409,2]
[385913785,1758131499767,-474.13,0.00025409,2]
[385913786,1758131499776,-400.0,0.00025409,2]
[385913787,1758131499786,-400.0,0.00025409,2]
[385913788,1758131499796,-400.0,0.00025409,2]
[385913789,1758131499810,-692.35,0.00025409,2]
[385913790,1758131499820,-400.0,0.00025409,2]
[385913791,1758131499829,-400.0,0.00025409,2]
[385913792,1758131499839,-400.0,0.00025409,2]
[385913793,1758131499849,-592.72,0.00025409,2]
[385913794,1758131499858,-443.07,0.00025409,2]
[385913795,1758131499868,-413.29,0.00025409,2]
[385913796,1758131499878,-452.64,0.00025409,2]
[385913797,1758131499888,-400.0,0.00025409,2]
[385913798,1758131499897,-400.0,0.00025409,2]
[385913799,1758131499907,-400.0,0.00025409,2]
[385913800,1758131499916,-400.0,0.00025409,2]
[385913801,1758131499925,-400.0,0.00025409,2]
[385913802,1758131499935,-400.65,0.00025409,2]
[385913803,1758131499945,-400.0,0.00025409,2]
[385913804,1758131499954,-400.0,0.00025409,2]
[385913805,1758131499964,-465.73,0.00025409,2]
[385913806,1758131499974,-464.32,0.00025409,2]
[385913807,1758131499985,-400.0,0.00025409,2]
[385913808,1758131499996,-949.62,0.00025409,2]
[385913809,1758131500005,-400.0,0.00025409,2]
[385913810,1758131500014,-1000.0,0.00025421,2]
[385913811,1758131500024,-931.40183353,0.00025421,2]
[385913812,1758131500033,-398.02978092,0.00025421,2]
[385913813,1758131500042,-1003.32700358,0.00025421,2]
[385913814,1758131500052,-1000.0,0.00025421,2]
[385913815,1758131500062,-1000.0,0.00025421,2]
[385913816,1758131500072,-1000.0,0.00025421,2]
[385913817,1758131500082,-839.10906599,0.00025421,2]
[385913818,1758131500091,-1000.0,0.00025421,2]
[385913819,1758131500101,-1000.0,0.00025421,2]
[385913820,1758131500110,-1000.0,0.00025421,2]
[385913821,1758131500120,-1000.0,0.00025421,2]
[385913822,1758131500129,-1000.0,0.00025421,2]
[385913823,1758131500139,-250.0,0.00025421,2]
[385913824,1758131500149,-200.0,0.00025448,2]
[385913825,1758131500158,-500.0,0.00025452,2]
[385913826,1758131500167,-1500.0,0.00025468,2]
[385913827,1758131500177,-1500.0,0.00025468,2]
[385913828,1758131500186,-933.64673218,0.00025468,2]
[385913829,1758131500196,-500.0,0.00025477,2]
[385913830,1758131500205,-2406.73,0.00025477,2]
[385913831,1758131500215,-4624.33,0.00025477,2]
[385913832,1758131500224,-757.05,0.00025478,2]
[385913833,1758131500233,-545.77,0.00025478,2]
[385913834,1758131500243,-519.92,0.00025478,2]
[385913835,1758131500252,-400.0,0.00025478,2]
[385913836,1758131500261,-400.0,0.00025478,2]
[385913837,1758131500271,-400.0,0.00025478,2]
[385913838,1758131500280,-400.0,0.00025478,2]
[385913839,1758131500289,-631.68,0.00025478,2]
[385913840,1758131500298,-400.0,0.00025478,2]
[385913841,1758131500309,-400.0,0.00025478,2]
[385913842,1758131500319,-442.6,0.00025478,2]
[385913843,1758131500328,-400.0,0.00025478,2]
[385913844,1758131500338,-400.0,0.00025478,2]
[385913845,1758131500347,-400.0,0.00025478,2]
[385913846,1758131500356,-400.0,0.00025478,2]
[385913847,1758131500365,-400.0,0.00025478,2]
[385913848,1758131500374,-400.0,0.00025478,2]
[385913849,1758131500383,-400.0,0.00025478,2]
[385913850,1758131500393,-400.0,0.00025478,2]
[385913851,1758131500403,-412.88441902,0.00025478,2]
[385913852,1758131500412,-400.0,0.00025478,2]
[385913853,1758131500421,-400.0,0.00025478,2]
[385913854,1758131500431,-400.0,0.00025478,2]
[385913855,1758131500440,-400.0,0.00025478,2]
[385913856,1758131500449,-400.0,0.00025478,2]
[385913857,1758131500459,-400.0,0.00025478,2]
[385913858,1758131500468,-400.0,0.00025478,2]
[385913859,1758131500477,-400.0,0.00025478,2]
[385913860,1758131500487,-400.0,0.00025478,2]
[385913861,1758131500496,-400.0,0.00025478,2]
[385913862,1758131500506,-400.0,0.00025478,2]
[385913863,1758131500515,-400.0,0.00025478,2]
[385913864,1758131500524,-400.0,0.00025478,2]
[385913865,1758131500534,-400.0,0.00025478,2]
[385913866,1758131500543,-400.0,0.00025478,2]
[385913867,1758131500552,-400.0,0.00025478,2]
[385913868,1758131500565,-400.0,0.00025478,2]
[385913869,1758131500574,-400.0,0.00025478,2]
[385913870,1758131500583,-400.0,0.00025478,2]
[385913871,1758131500592,-400.0,0.00025478,2]
[385913872,1758131500602,-400.0,0.00025478,2]
[385913873,1758131500611,-400.0,0.00025478,2]
[385913874,1758131500621,-415.33019408,0.00025478,2]
[385913875,1758131500630,-400.0,0.00025478,2]
[385913876,1758131500639,-400.0,0.00025478,2]
[385913877,1758131500649,-400.0,0.00025478,2]
[385913878,1758131500659,-407.39070687,0.00025478,2]
[385913879,1758131500668,-400.0,0.00025478,2]
[385913880,1758131500678,-400.0,0.00025478,2]
[385913881,1758131500687,-400.0,0.00025478,2]
[385913882,1758131500697,-400.0,0.00025478,2]
[385913883,1758131500706,-400.0,0.00025478,2]
[385913884,1758131500715,-418.36658176,0.00025478,2]
[385913885,1758131500725,-400.0,0.00025478,2]
[385913886,1758131500735,-400.0,0.00025478,2]
[385913887,1758131500744,-400.0,0.00025478,2]
[385913888,1758131500753,-400.0,0.00025478,2]
[385913889,1758131500763,-400.0,0.00025478,2]
[385913890,1758131500773,-400.0,0.00025478,2]
[385913891,1758131500782,-489.71,0.00025478,2]
[385913892,1758131500792,-400.0,0.00025478,2]
[385913893,1758131500801,-400.0,0.00025478,2]
[385913894,1758131500816,-400.0,0.00025478,2]
[385913895,1758131500827,-400.0,0.00025478,2]
[385913896,1758131500838,-400.0,0.00025478,2]
[385913897,1758131500848,-524.22623188,0.00025478,2]
[385913898,1758131500858,-400.0,0.00025478,2]
[385913899,1758131500868,-400.0,0.00025478,2]
[385913900,1758131500877,-362.90941492,0.00025478,2]
[385913901,1758131500887,-400.0,0.00025478,2]
[385913902,1758131500897,-400.0,0.00025478,2]
[385913903,1758131500907,-400.0,0.00025478,2]
[385913904,1758131500916,-400.0,0.00025478,2]
[385913905,1758131500927,-400.0,0.00025478,2]
[385913906,1758131500936,-400.0,0.00025478,2]
[385913907,1758131500946,-400.0,0.00025478,2]
[385913908,1758131500956,-400.0,0.00025478,2]
[385913909,1758131500965,-400.0,0.00025478,2]
[385913910,1758131500976,-400.0,0.00025478,2]
[385913911,1758131500990,-400.0,0.00025478,2]
[385913912,1758131500999,-563.17,0.00025478,2]
[385913913,1758131501010,-400.0,0.00025478,2]
[385913914,1758131501020,-940.33,0.00025478,2]
[385913915,1758131501030,-400.59704821,0.00025478,2]
[385913916,1758131501040,-400.0,0.00025478,2]
[385913917,1758131501050,-510.74240433,0.00025478,2]
[385913918,1758131501066,-400.0,0.00025478,2]
[385913919,1758131501075,-400.0,0.00025478,2]
[385913920,1758131501085,-400.0,0.00025478,2]
[385913921,1758131501094,-400.0,0.00025478,2]
[385913922,1758131501104,-400.0,0.00025478,2]
[385913923,1758131501114,-400.0,0.00025478,2]
[385913924,1758131501124,-400.0,0.00025478,2]
[385913925,1758131501133,-400.0,0.00025478,2]
[385913926,1758131501143,-400.0,0.00025478,2]
[385913927,1758131501152,-400.0,0.00025478,2]
[385913928,1758131501162,-400.0,0.00025478,2]
[385913929,1758131501172,-400.0,0.00025478,2]
[385913930,1758131501182,-400.0,0.00025478,2]
[385913931,1758131501191,-400.0,0.00025478,2]
[385913932,1758131501201,-400.0,0.00025478,2]
[385913933,1758131501211,-500.0,0.0002548,2]
[385913934,1758131501220,-1035.84,0.00025487,2]
[385913935,1758131501230,-2077.5,0.00025487,2]
[385913936,1758131501240,-1000.0,0.00025487,2]
[385913937,1758131501249,-1360.36,0.00025487,2]
[385913938,1758131501258,-400.0,0.00025487,2]
[385913939,1758131501268,-1112.0,0.00025487,2]
[385913940,1758131501278,-680.54,0.00025487,2]
[385913941,1758131501287,-2950.65,0.00025487,2]
[385913942,1758131501297,-400.0,0.00025487,2]
[385913943,1758131501311,-937.21,0.00025487,2]
[385913944,1758131501320,-823.68,0.00025487,2]
[385913945,1758131501330,-1071.56,0.00025487,2]
[385913946,1758131501340,-400.0,0.00025487,2]
[385913947,1758131501350,-1146.0,0.00025487,2]
[385913948,1758131501359,-887.5,0.00025487,2]
[385913949,1758131501368,-437.52,0.00025487,2]
[385913950,1758131501378,-466.25,0.00025487,2]
[385913951,1758131501387,-1002.32,0.00025497,2]
[385913952,1758131501396,-500.0,0.00025497,2]
[385913953,1758131501406,-2406.73,0.00025497,2]
[385913954,1758131501415,-1002.32,0.00025498,2]
[385913955,1758131501425,-348.0,0.000255,5]
[385913956,1758131501434,-168.0,0.00025504,2]
[385913957,1758131501445,-419.67,0.00025505,2]
[385913958,1758131501455,-150.0,0.00025507,2]
[385913959,1758131501465,-150.0,0.00025507,2]
[385913960,1758131501475,-150.0,0.00025507,2]
[385913961,1758131501484,-150.0,0.00025507,2]
[385913962,1758131501494,-1192.69,0.00025507,2]
[385913963,1758131501504,-543.25,0.00025507,2]
[385913964,1758131501514,-167.18,0.00025507,2]
[385913965,1758131501523,-150.0,0.00025507,2]
[385913966,1758131501533,-1192.69,0.00025507,2]
[385913967,1758131501543,-167.18,0.00025507,2]
[385913968,1758131501556,-543.25,0.00025507,2]
[385913969,1758131501566,-174.95,0.00025507,2]
[385913970,1758131501575,-150.0,0.00025507,2]
[385913971,1758131501585,-411.23,0.00025507,2]
[385913972,1758131501595,-150.0,0.00025507,2]
[385913973,1758131501605,-150.0,0.00025507,2]
[385913974,1758131501615,-543.25,0.00025507,2]
[385913975,1758131501625,-1192.69,0.00025507,2]
[385913976,1758131501635,-150.0,0.00025507,2]
[385913977,1758131501645,-174.95,0.00025507,2]
[385913978,1758131501655,-411.23,0.00025507,2]
[385913979,1758131501664,-150.0,0.00025507,2]
[385913980,1758131501674,-167.18,0.00025507,2]
[385913981,1758131501684,-150.0,0.00025507,2]
[385913982,1758131501694,-150.0,0.00025507,2]
[385913983,1758131501704,-1192.69,0.00025507,2]
[385913984,1758131501714,-150.0,0.00025507,2]
[385913985,1758131501723,-150.0,0.00025507,2]
[385913986,1758131501733,-150.0,0.00025507,2]
[385913987,1758131501743,-543.25,0.00025507,2]
[385913988,1758131501753,-174.95,0.00025507,2]
[385913989,1758131501762,-167.18,0.00025507,2]
[385913990,1758131501772,-411.23,0.00025507,2]
[385913991,1758131501782,-150.0,0.00025507,2]
[385913992,1758131501792,-167.18,0.00025507,2]
[385913993,1758131501801,-174.95,0.00025507,2]
[385913994,1758131501814,-1192.69,0.00025507,2]
[385913995,1758131501824,-150.0,0.00025507,2]
[385913996,1758131501834,-150.0,0.00025507,2]
[385913997,1758131501844,-150.0,0.00025507,2]
[385913998,1758131501854,-543.25,0.00025507,2]
[385913999,1758131501865,-411.23,0.00025507,2]
[385914000,1758131501875,-174.95,0.00025507,2]
[385914001,1758131501885,-493.67,0.00025507,2]
[385914002,1758131501895,-540.42,0.00025507,2]
[385914003,1758131501905,-167.18,0.00025507,2]
[385914004,1758131501916,-411.23,0.00025507,2]
[385914005,1758131501926,-300.0,0.00025507,2]
[385914006,1758131501936,-174.95,0.00025507,2]
[385914007,1758131501946,-150.0,0.00025507,2]
[385914008,1758131501956,-167.18,0.00025507,2]
[385914009,1758131501966,-411.23,0.00025507,2]
[385914010,1758131501976,-411.23,0.00025507,2]
[385914011,1758131501987,-167.18,0.00025507,2]
[385914012,1758131501998,-174.95,0.00025507,2]
[385914013,1758131502007,-167.18,0.00025507,2]
[385914014,1758131502017,-173.71,0.00025507,2]
[385914015,1758131502027,-411.23,0.00025507,2]
[385914016,1758131502037,-411.23,0.00025507,2]
[385914017,1758131502046,-411.23,0.00025507,2]
[385914018,1758131502058,-418.03,0.00025507,2]
[385914019,1758131502068,-300.0,0.00025516,2]
[385914020,1758131502078,-151.02,0.00025516,2]
[385914021,1758131502087,-334.36,0.00025518,2]
[385914022,1758131502097,-334.36,0.00025518,2]
[385914023,1758131502107,-217.26,0.00025518,2]
[385914024,1758131502116,-1192.69,0.00025518,2]
[385914025,1758131502126,-174.95,0.00025518,2]
[385914026,1758131502136,-308.7,0.00025518,2]
[385914027,1758131502145,-411.23,0.00025518,2]
[385914028,1758131502155,-1192.69,0.00025518,2]
[385914029,1758131502165,-150.0,0.00025518,2]
[385914030,1758131502174,-174.95,0.00025518,2]
[385914031,1758131502184,-411.23,0.00025518,2]
[385914032,1758131502193,-1192.69,0.00025518,2]
[385914033,1758131502203,-174.95,0.00025518,2]
[385914034,1758131502213,-411.23,0.00025518,2]
[385914035,1758131502223,-4624.33,0.0002552,2]
[385914036,1758131502233,-1007.64112434,0.00025521,2]
[385914037,1758131502242,-1000.0,0.00025521,2]
[385914038,1758131502251,-1000.0,0.00025521,2]
[385914039,1758131502262,-1000.0,0.00025521,2]
[385914040,1758131502272,-1000.0,0.00025521,2]
[385914041,1758131502283,-501.09157259,0.00025521,2]
[385914042,1758131502292,-1000.0,0.00025521,2]
[385914043,1758131502302,-503.66456285,0.00025521,2]
[385914044,1758131502314,-1000.0,0.00025521,2]
[385914045,1758131502323,-1000.0,0.00025521,2]
[385914046,1758131502332,-1000.0,0.00025521,2]
[385914047,1758131502341,-1000.0,0.00025521,2]
[385914048,1758131502350,-168.0,0.00025532,2]
[385914049,1758131502359,-183.4,0.00025534,2]
[385914050,1758131502368,-1002.32,0.00025535,2]
[385914051,1758131502377,-383.0,0.000256,2]
[385914052,1758131502387,-783.0,0.000256,2]
[385914053,1758131502396,-242.0,0.000256,2]
[385914054,1758131502406,-514.0,0.000256,2]
[385914055,1758131502415,-1000.0,0.0002563,2]
[385914056,1758131502424,-2112.0,0.00025653,2]
[385914057,1758131502434,-489.37,0.0002566,2]
[385914058,1758131502444,-289.243169,0.0002566,2]
[385914059,1758131502455,-198.362773,0.0002566,2]
[385914060,1758131502465,-584.85,0.0002566,2]
[385914061,1758131502474,-400.0,0.0002566,2]
[385914062,1758131502483,-569.4,0.0002566,2]
[385914063,1758131502493,-2444.1,0.0002566,2]
[385914064,1758131502503,-400.0,0.0002566,2]
[385914065,1758131502513,-571.13,0.0002566,2]
[385914066,1758131502523,-574.63,0.0002566,2]
[385914067,1758131502533,-453.12,0.0002566,2]
[385914068,1758131502542,-696.41,0.0002566,2]
[385914069,1758131502552,-1567.04,0.0002566,2]
[385914070,1758131502565,-908.05,0.0002566,2]
[385914071,1758131502575,-486.03,0.0002566,2]
[385914072,1758131502586,-611.17,0.0002566,2]
[385914073,1758131502596,-487.0,0.0002566,2]
[385914074,1758131502608,-1065.47,0.0002566,2]
[385914075,1758131502619,-751.64,0.0002566,2]
[385914076,1758131502630,-14812.96,0.0002566,2]
[385914077,1758131502640,-995.91,0.0002566,2]
[385914078,1758131502650,-923.1,0.0002566,2]
[385914079,1758131502660,-403.2,0.0002566,2]
[385914080,1758131502670,-699.46,0.0002566,2]
[385914081,1758131502682,-2176.27,0.0002566,2]
[385914082,1758131502693,-1126.89,0.0002566,2]
[385914083,1758131502703,-2761.17,0.0002566,2]
[385914084,1758131502714,-400.0,0.0002566,2]
[385914085,1758131502725,-1077.38,0.0002566,2]
[385914086,1758131502735,-810.57,0.0002566,2]
[385914087,1758131502745,-400.0,0.0002566,2]
[385914088,1758131502756,-2677.29,0.0002566,2]
[385914089,1758131502767,-2715.75,0.0002566,2]
[385914090,1758131502777,-1131.67,0.0002566,2]
[385914091,1758131502788,-633.79,0.0002566,2]
[385914092,1758131502798,-623.43,0.0002566,2]
[385914093,1758131502809,-3560.1,0.0002566,2]
[385914094,1758131502820,-400.0,0.0002566,2]
[385914095,1758131502830,-400.0,0.0002566,2]
[385914096,1758131502840,-484.81,0.0002566,2]
[385914097,1758131502850,-1076.33,0.0002566,2]
[385914098,1758131502861,-400.0,0.0002566,2]
[385914099,1758131502871,-1315.56,0.0002566,2]
[385914100,1758131502882,-426.46,0.0002566,2]
[385914101,1758131502892,-2358.0,0.0002566,2]
[385914102,1758131502903,-2404.84,0.0002566,2]
[385914103,1758131502913,-4070.35,0.0002566,2]
[385914104,1758131502923,-400.0,0.00025661,2]